bitfinex-derivatives/quotes_ETHF0:USTF0_20241017
["timestamp","ask_amount","ask_price","bid_price","bid_amount"]
[1729179162864,5.8305,2610.9,2610.8,0.38312]
[1729179163841,0.38312,2610.8,2610.7,0.38312]
[1729179164040,5.83051,2610.9,2610.8,0.38312]
[1729179164655,0.38312,2610.8,2610.7,0.38312]
[1729179164952,5.4474,2610.9,2610.5,1.0549]
[1729179165156,0.38312,2610.8,2610.7,0.38312]
[1729179165747,0.38314,2610.7,2610.6,0.38314]
[1729179165954,0.38314,2610.7,2610.4,0.38317]
[1729179165955,0.38317,2610.5,2610.4,0.38317]
[1729179166150,0.38321,2610.2,2610.1,0.38321]
[1729179166350,8.90468,2610.6,2609.9,2.1871]
[1729179166647,0.38318,2610.4,2610.3,0.38318]
[1729179167046,4.21438,2610.4,2610.3,0.38319]
[1729179167246,0.3832,2610.3,2610.2,0.38319]
[1729179167447,7.9468,2610.6,2609.9,3.14521]
[1729179167647,0.38318,2610.4,2610.3,0.38318]
[1729179167847,0.38321,2610.2,2610.1,0.38321]
[1729179168454,1.53691,2610.2,2610.1,0.38321]
[1729179168656,0.38323,2610.0,2609.9,1.49364]
[1729179168849,0.38323,2610.0,2609.9,1.1104]
[1729179169054,0.38323,2610.0,2609.5,1.5317]
[1729179169055,0.38329,2609.7,2609.5,1.5317]
[1729179169253,4.6381,2610.0,2609.5,1.5317]
[1729179169453,0.38329,2609.6,2609.5,0.3833]
[1729179169655,3.2078,2609.9,2609.5,0.3833]
[1729179170154,3.2078,2609.9,2609.3,1.0573]
[1729179170663,0.38328,2609.7,2609.6,0.38329]
[1729179170857,0.38327,2609.8,2609.7,0.38327]
[1729179171048,0.38327,2609.8,2609.7,0.38328]
[1729179171445,0.38328,2609.7,2609.6,0.38329]
[1729179171651,0.38327,2609.8,2609.7,0.38327]
[1729179172356,0.38326,2609.8,2609.7,0.38328]
[1729179172663,0.38329,2609.7,2609.6,0.38329]
[1729179172863,2.58809,2609.7,2609.6,0.38329]
[1729179173357,2.2048,2609.7,2609.6,0.38329]
[1729179173549,2.58808,2609.7,2609.6,0.38329]
[1729179173754,6.42008,2609.7,2609.6,0.38329]
[1729179173952,2.2048,2609.7,2609.6,0.38329]
[1729179174155,1.1401,2609.7,2609.6,0.38329]
[1729179174359,3.2078,2609.9,2609.8,0.38326]
[1729179174360,3.59105,2609.9,2609.8,0.38326]
[1729179174952,3.2078,2609.9,2609.3,5.29783]
[1729179175157,0.38327,2609.8,2609.7,0.38327]
[1729179175564,4.21527,2609.8,2609.7,0.38328]
[1729179175757,3.832,2609.8,2609.7,0.38328]
[1729179176261,6.58106,2609.9,2609.8,0.38326]
[1729179176456,16.41306,2609.9,2609.8,0.38326]
[1729179177160,13.20526,2609.9,2609.8,0.38326]
[1729179177354,6.822,2609.9,2609.8,0.38326]
[1729179177556,3.37325,2609.9,2609.8,0.38326]
[1729179177762,2.99,2609.9,2609.8,0.38326]
[1729179178265,3.2078,2610.1,2610.0,0.38323]
[1729179179054,1.0703,2610.4,2610.0,0.38323]
[1729179179055,1.0703,2610.4,2610.3,0.38319]
[1729179179259,10.3228,2610.5,2610.1,0.95805]
[1729179179260,6.1978,2610.5,2610.4,0.38317]
[1729179180759,6.58096,2610.5,2610.4,0.38317]
[1729179181062,6.1978,2610.5,2610.4,0.38317]
[1729179181257,6.1978,2610.5,2609.9,6.37901]
[1729179181258,16.0282,2610.5,2609.9,5.4209]
[1729179181463,3.37321,2610.2,2610.1,0.38321]
[1729179181767,3.3732,2610.2,2610.1,0.38321]
[1729179182465,0.3832,2610.3,2610.2,0.38319]
[1729179182853,0.3832,2610.3,2610.0,0.38323]
[1729179182854,0.38323,2610.1,2610.0,0.38323]
[1729179183053,2.99,2610.1,2610.0,0.38323]
[1729179183469,3.37322,2610.1,2610.0,0.38323]
[1729179183966,2.99,2610.1,2610.0,0.38323]
[1729179184164,1.0462,2610.3,2610.2,0.3832]
[1729179184360,6.1978,2610.5,2610.4,0.38317]
[1729179184760,6.58096,2610.5,2610.4,0.38317]
[1729179185070,6.1978,2610.5,2610.2,1.1258]
[1729179185269,0.38319,2610.4,2610.3,0.38318]
[1729179185469,0.38319,2610.4,2610.0,0.95808]
[1729179185470,6.58098,2610.5,2610.4,0.38317]
[1729179186557,6.58096,2610.5,2610.4,0.38317]
[1729179186763,0.38319,2610.4,2610.3,0.38318]
[1729179187471,6.58097,2610.5,2610.4,0.38317]
[1729179187967,0.38318,2610.4,2610.3,0.38317]
[1729179188171,6.58097,2610.5,2610.4,0.38317]
[1729179189264,0.38319,2610.4,2610.3,0.38318]
[1729179189661,3.8312,2610.4,2609.9,2.05582]
[1729179189857,4.47099,2610.3,2610.2,0.38319]
[1729179191565,13.919,2610.3,2609.3,0.089]
[1729179191872,3.37333,2609.4,2609.2,1.0725]
[1729179192069,3.37333,2609.4,2609.2,1.45584]
[1729179192268,2.99,2609.4,2609.2,1.0725]
[1729179192466,2.99,2609.6,2609.2,1.0725]
[1729179192666,5.3707,2609.7,2609.2,1.0725]
[1729179192867,5.3707,2609.7,2609.5,0.3833]
[1729179192868,5.75398,2609.7,2609.5,0.3833]
[1729179193069,5.75398,2609.7,2609.2,1.0725]
[1729179193070,5.3707,2609.7,2609.6,0.38329]
[1729179193676,3.2078,2609.7,2609.6,0.38329]
[1729179194370,0.38325,2609.9,2609.7,0.38327]
[1729179194972,0.38325,2609.9,2609.3,3.2078]
[1729179195175,0.38325,2609.9,2609.7,0.38327]
[1729179195379,5.443,2610.0,2609.3,3.2078]
[1729179195676,0.38326,2609.9,2609.7,0.38327]
[1729179196272,2.99,2609.9,2609.2,1.0725]
[1729179196473,0.38328,2609.7,2609.6,0.38328]
[1729179196673,0.38328,2609.7,2609.3,0.95834]
[1729179196970,0.38328,2609.7,2609.6,0.38329]
[1729179197377,2.99,2609.9,2609.3,0.95834]
[1729179197680,0.38328,2609.7,2609.6,0.38328]
[1729179198069,2.99,2609.9,2609.4,0.95829]
[1729179198274,3.37325,2609.9,2609.8,0.38326]
[1729179199178,2.99,2609.9,2609.8,0.38326]
[1729179199375,1.00135307,2610.0,2609.9,0.38325]
[1729179199576,0.38321,2610.2,2609.7,0.9582]
[1729179199784,7.58235307,2610.3,2610.2,0.3832]
[1729179200473,7.58235307,2610.3,2610.1,0.3832]
[1729179200474,0.38321,2610.2,2610.1,0.3832]
[1729179200672,7.58235307,2610.3,2610.2,0.3832]
[1729179201373,6.581,2610.3,2610.2,0.3832]
[1729179201581,1.00174336,2610.3,2610.0,1.1453]
[1729179201775,8.29058,2610.9,2610.2,3.2078]
[1729179201776,2.15204336,2610.8,2610.2,3.2078]
[1729179201978,1.1503,2610.8,2610.7,0.38313]
[1729179202181,1.1503,2610.8,2610.3,3.94798]
[1729179202182,1.1338,2611.1,2610.6,6.1978]
[1729179202481,0.38306,2611.2,2611.1,0.38306]
[1729179202671,1.00143689,2611.3,2610.9,3.2078]
[1729179202867,0.38306,2611.2,2611.0,0.38307]
[1729179203682,0.38308,2611.1,2610.9,3.5909]
[1729179203876,1.00143689,2611.3,2611.0,0.38308]
[1729179204077,0.38306,2611.2,2611.0,0.38308]
[1729179204982,4.20923689,2611.3,2611.2,0.38306]
[1729179204983,0.38305,2611.3,2611.2,0.38306]
[1729179205281,5.14173689,2611.4,2610.7,7.49061]
[1729179205470,5.52477689,2611.4,2611.2,0.38305]
[1729179205778,4.52334,2611.4,2611.2,0.38304]
[1729179205983,1.00143689,2611.5,2610.8,6.1978]
[1729179206174,6.22675534,2611.6,2610.7,4.28281]
[1729179206175,1.38442689,2611.7,2611.2,1.34071]
[1729179206482,2.52631689,2611.8,2611.6,0.383]
[1729179206675,1.52488,2611.8,2611.6,0.383]
[1729179206870,1.1419,2611.8,2611.4,3.2078]
[1729179207071,4.20923689,2612.0,2611.4,3.2078]
[1729179207274,3.2078,2612.0,2611.4,3.2078]
[1729179207490,0.38296,2611.9,2611.4,3.2078]
[1729179207677,0.38297,2611.8,2611.7,0.38298]
[1729179207881,3.2078,2612.0,2611.9,0.38295]
[1729179207882,3.59075,2612.0,2611.9,0.38295]
[1729179208379,3.2078,2612.0,2611.8,0.38296]
[1729179208586,3.59075,2612.0,2611.8,0.38296]
[1729179208783,0.38295,2611.9,2611.8,0.38296]
[1729179208971,0.38295,2611.9,2611.4,3.2078]
[1729179209176,3.59075,2612.0,2611.8,0.38296]
[1729179209776,3.2078,2612.0,2611.9,0.38295]
[1729179210183,1.1419,2612.2,2611.7,3.2078]
[1729179210378,1.1419,2612.2,2612.1,0.38292]
[1729179210781,3.2078,2612.4,2611.8,0.95743]
[1729179210980,1.1287,2612.6,2612.1,2.99]
[1729179210981,2.12695531,2612.6,2612.1,2.99]
[1729179211185,2.12695531,2612.6,2612.5,0.38287]
[1729179211186,1.1287,2612.6,2612.5,0.38287]
[1729179211377,1.50075,2612.7,2612.5,0.38287]
[1729179212085,1.1179,2612.7,2612.1,3.2078]
[1729179212297,0.38286,2612.6,2612.1,3.2078]
[1729179212480,1.50075,2612.7,2612.5,0.38286]
[1729179212681,1.47301,2612.9,2612.7,0.38283]
[1729179212876,1.47301,2612.9,2612.2,4.63725]
[1729179212877,1.0902,2612.9,2612.3,0.95725]
[1729179213081,1.0902,2612.9,2612.7,0.38284]
[1729179213274,1.0902,2612.9,2612.3,0.95725]
[1729179213476,1.0902,2612.9,2612.8,0.38282]
[1729179213688,1.47301,2612.9,2612.3,0.95725]
[1729179213896,8.0057,2613.3,2612.3,0.95725]
[1729179214080,0.3828,2613.0,2612.8,0.38282]
[1729179214276,9.0741,2613.3,2612.9,0.38281]
[1729179214487,0.3828,2613.0,2612.4,0.95721]
[1729179214692,0.3828,2613.0,2612.5,2.1783]
[1729179214983,0.3828,2613.0,2612.6,3.2078]
[1729179215184,9.0741,2613.3,2612.6,3.2078]
[1729179215397,0.38276,2613.2,2612.6,3.2078]
[1729179215588,0.38276,2613.2,2613.1,0.38277]
[1729179215788,5.3941,2613.3,2613.1,0.38277]
[1729179215990,5.77686,2613.3,2613.1,0.38277]
[1729179216176,0.38276,2613.2,2612.6,5.2791]
[1729179216381,0.38277,2613.2,2613.0,0.38278]
[1729179216582,0.38277,2613.2,2612.7,0.38284]
[1729179216785,5.3941,2613.3,2613.0,0.38278]
[1729179217090,0.38277,2613.2,2613.0,0.38278]
[1729179217393,0.38277,2613.2,2612.6,4.322]
[1729179217584,0.38277,2613.2,2613.1,0.38278]
[1729179217982,0.38277,2613.2,2612.6,4.322]
[1729179217983,5.3941,2613.3,2613.0,0.38279]
[1729179218181,5.3941,2613.3,2612.9,0.3828]
[1729179218382,0.38279,2613.0,2612.9,0.3828]
[1729179218778,0.38279,2613.0,2612.6,4.322]
[1729179218983,0.38279,2613.0,2612.8,0.38281]
[1729179219186,40.8,2612.9,2612.8,0.38281]
[1729179219585,41.18281,2612.9,2612.8,0.38281]
[1729179220087,40.8,2612.9,2612.8,0.38281]
[1729179220400,41.18281,2612.9,2612.8,0.38281]
[1729179220580,40.8,2612.9,2612.8,0.38281]
[1729179221286,0.38277,2613.2,2613.0,0.38278]
[1729179221487,5.3941,2613.3,2612.9,0.38279]
[1729179221687,40.8,2613.2,2612.6,4.322]
[1729179221887,0.38278,2613.1,2613.0,0.38279]
[1729179222381,40.8,2613.2,2612.6,4.322]
[1729179222582,0.38279,2613.0,2612.9,0.3828]
[1729179223186,0.38278,2613.1,2613.0,0.38279]
[1729179223388,40.8,2613.2,2612.6,4.322]
[1729179223589,40.8,2613.2,2612.8,0.38281]
[1729179223786,0.38281,2612.9,2612.8,0.38281]
[1729179224488,0.38282,2612.9,2612.8,0.38282]
[1729179225592,0.3828,2613.0,2612.9,0.3828]
[1729179225789,40.8,2613.2,2612.6,3.2078]
[1729179225997,0.38281,2612.9,2612.8,0.38281]
[1729179226186,40.8,2613.2,2612.5,2.1783]
[1729179226394,3.2078,2613.0,2612.5,2.1783]
[1729179226589,0.38283,2612.8,2612.7,0.38283]
[1729179228293,0.38282,2612.9,2612.8,0.38282]
[1729179228596,0.38281,2612.9,2612.8,0.38282]
[1729179229493,0.38283,2612.8,2612.7,0.38284]
[1729179229793,41.75693,2613.2,2612.5,2.1783]
[1729179230000,2.56905,2613.3,2613.0,3.68]
[1729179230188,2.1863,2613.3,2613.2,0.38276]
[1729179231995,0.38276,2613.2,2613.1,0.38276]
[1729179232196,0.38279,2613.1,2613.0,0.38278]
[1729179233095,2.1863,2613.3,2612.9,3.2078]
[1729179233395,2.1863,2613.3,2613.2,0.38276]
[1729179233598,3.2078,2613.5,2613.0,2.07356]
[1729179233910,3.59052,2613.5,2613.4,0.38273]
[1729179235188,0.38272,2613.5,2613.4,0.38273]
[1729179236195,0.38274,2613.4,2613.3,0.38273]
[1729179236500,1.1364,2613.6,2613.4,0.38272]
[1729179236501,0.38273,2613.5,2613.4,0.38272]
[1729179236900,1.1364,2613.6,2613.2,1.0473]
[1729179236901,1.51911,2613.6,2613.5,0.38272]
[1729179237102,1.1364,2613.6,2613.2,1.0473]
[1729179237303,0.38273,2613.5,2613.4,0.38272]
[1729179237605,1.1364,2613.6,2613.5,0.38272]
[1729179237606,1.51911,2613.6,2613.5,0.38272]
[1729179239198,0.38273,2613.5,2613.4,0.38272]
[1729179239796,0.38275,2613.4,2613.3,0.38274]
[1729179240099,0.38273,2613.5,2613.4,0.38272]
[1729179240291,1.1364,2613.6,2613.1,2.99]
[1729179240491,2.09318,2613.6,2613.0,2.1657]
[1729179240704,0.38276,2613.3,2613.2,0.38275]
[1729179241095,3.8264,2613.3,2613.0,1.1166]
[1729179241304,0.38279,2613.1,2613.0,0.38278]
[1729179242397,1.43118,2613.2,2613.1,0.38278]
[1729179242599,1.0484,2613.2,2613.1,0.38278]
[1729179242797,0.38275,2613.3,2613.2,0.38276]
[1729179242996,0.38275,2613.4,2613.3,0.38274]
[1729179243200,0.38276,2613.3,2613.2,0.38275]
[1729179243503,0.38274,2613.4,2613.3,0.38274]
[1729179243901,44.0078,2613.8,2613.3,7.19914]
[1729179244109,0.38267,2613.9,2613.8,0.38266]
[1729179244406,0.38263,2614.2,2613.7,2.99]
[1729179244703,0.38264,2614.1,2613.9,3.2078]
[1729179244896,0.38262,2614.2,2614.0,0.38264]
[1729179245201,1.0608,2614.4,2613.7,2.99]
[1729179245417,1.0608,2614.4,2613.7,3.94672]
[1729179245597,0.38261,2614.3,2614.1,0.38263]
[1729179245905,1.44339,2614.4,2614.2,0.38261]
[1729179246098,1.44339,2614.4,2614.3,0.3826]
[1729179246099,1.0608,2614.4,2614.3,0.3826]
[1729179246692,1.44339,2614.4,2614.2,0.38261]
[1729179246995,4.3426,2614.5,2614.2,0.38261]
[1729179246996,3.2078,2614.5,2614.4,0.38259]
[1729179247403,1.0608,2614.8,2614.5,0.38257]
[1729179247404,4.2686,2614.8,2614.5,0.38257]
[1729179247599,4.2686,2614.8,2614.2,6.1978]
[1729179247600,0.38256,2614.6,2614.2,6.1978]
[1729179248003,0.38255,2614.7,2614.2,6.1978]
[1729179248307,4.2686,2614.8,2614.6,0.38255]
[1729179248504,0.38255,2614.7,2614.5,0.38257]
[1729179248806,0.38255,2614.7,2614.2,6.1978]
[1729179249005,4.2686,2614.8,2614.6,0.38256]
[1729179249195,4.65114,2614.8,2614.7,0.38254]
[1729179249403,4.65114,2614.8,2614.6,0.38255]
[1729179249896,0.00469426,2615.1,2615.0,0.3825]
[1729179250098,0.00469426,2615.1,2615.0,2.99]
[1729179250400,0.00469426,2615.1,2615.0,3.3725]
[1729179250599,0.00469426,2615.1,2615.0,0.3825]
[1729179251201,0.00469426,2615.1,2615.0,7.1965]
[1729179251398,0.00469426,2615.1,2615.0,3.3725]
[1729179251595,0.00469426,2615.1,2615.0,7.1965]
[1729179251903,0.00469426,2615.1,2615.0,10.4043]
[1729179252307,1.1314,2615.6,2615.5,0.38243]
[1729179252606,3.2078,2616.1,2615.4,2.99]
[1729179252799,3.2078,2616.1,2615.6,0.38241]
[1729179252800,0.38237,2615.9,2615.6,0.38241]
[1729179252997,1.52370544,2616.0,2615.4,2.99]
[1729179253304,1.14134544,2616.0,2615.8,0.38237]
[1729179253505,1.14134544,2616.0,2615.6,0.38241]
[1729179253801,1.14134544,2616.0,2615.4,4.1085]
[1729179253802,0.38241,2615.7,2615.4,0.38243]
[1729179254104,3.2078,2615.8,2615.3,3.2078]
[1729179254305,3.2078,2615.8,2615.6,0.3824]
[1729179254505,3.2078,2615.8,2615.3,3.2078]
[1729179254506,3.2078,2615.8,2615.7,0.3824]
[1729179254703,3.2078,2615.8,2615.3,3.2078]
[1729179254901,3.2078,2615.8,2615.7,3.67]
[1729179255104,1.14134544,2616.0,2615.7,3.67]
[1729179255304,1.14134544,2616.0,2615.6,3.2078]
[1729179255502,1.52370544,2616.0,2615.8,0.38238]
[1729179255707,1.52370544,2616.0,2615.7,0.38239]
[1729179255897,1.14134544,2616.0,2615.5,0.38243]
[1729179256099,1.14134544,2616.0,2615.8,0.38238]
[1729179256302,1.14134544,2616.0,2615.6,3.2078]
[1729179256612,1.14134544,2616.0,2615.7,0.3824]
[1729179256911,1.1286,2615.9,2615.6,3.2078]
[1729179257211,1.1286,2615.9,2614.9,4.62626]
[1729179257212,0.38241,2615.7,2615.4,0.38244]
[1729179257404,0.38243,2615.5,2615.2,0.38247]
[1729179257606,1.1286,2615.9,2615.0,3.2078]
[1729179257607,3.2078,2615.8,2615.0,3.2078]
[1729179257911,0.38244,2615.5,2615.1,0.38249]
[1729179258407,0.38243,2615.5,2615.0,3.2078]
[1729179258802,0.38243,2615.5,2615.3,0.38245]
[1729179259406,3.2078,2615.8,2615.0,3.2078]
[1729179259407,0.38246,2615.3,2615.1,0.38248]
[1729179259609,1.0629,2615.4,2615.0,3.59029]
[1729179259817,1.0629,2615.4,2615.0,3.2078]
[1729179260010,1.0629,2615.4,2614.9,1.1011]
[1729179260011,41.9191,2615.3,2614.9,1.1011]
[1729179260707,0.38249,2615.1,2614.9,1.48361]
[1729179260911,0.38254,2614.8,2614.6,0.38255]
[1729179261112,0.38255,2614.7,2614.5,0.38256]
[1729179261316,4.16398,2615.2,2614.3,3.2078]
[1729179261317,0.95622,2615.1,2614.3,3.2078]
[1729179261612,3.5903,2615.0,2614.8,0.38252]
[1729179261914,3.5903,2615.0,2614.4,3.67]
[1729179261915,3.2078,2615.0,2614.9,0.38251]
[1729179262101,3.2078,2615.0,2614.4,4.62645]
[1729179262102,3.2078,2615.0,2614.4,3.67]
[1729179262307,0.38251,2614.9,2614.4,3.67]
[1729179262517,3.2078,2615.1,2614.4,3.67]
[1729179262707,0.38254,2614.8,2614.5,0.38257]
[1729179263015,3.2078,2615.1,2614.4,3.67]
[1729179263220,0.38254,2614.8,2614.6,0.38256]
[1729179263514,3.2078,2615.1,2614.8,0.38252]
[1729179263515,0.38251,2615.0,2614.8,0.38252]
[1729179263917,0.3825,2615.1,2614.5,0.95644]
[1729179264215,0.38248,2615.2,2615.0,0.38249]
[1729179264417,41.9191,2615.3,2615.0,0.38249]
[1729179264605,41.9191,2615.3,2614.9,0.38251]
[1729179264801,0.38247,2615.2,2615.0,0.38249]
[1729179265021,0.38249,2615.1,2615.0,0.38249]
[1729179265311,41.9191,2615.3,2614.6,7.9698]
[1729179265711,0.3825,2615.1,2615.0,0.3825]
[1729179266216,0.3825,2615.1,2614.9,0.38251]
[1729179266415,0.3825,2615.1,2615.0,0.3825]
[1729179266713,3.2078,2615.2,2614.6,7.9698]
[1729179267011,0.38252,2614.9,2614.7,0.38253]
[1729179267201,3.2078,2615.2,2614.6,4.2998]
[1729179267408,41.9191,2615.3,2615.2,0.38247]
[1729179267606,1.0629,2615.4,2614.8,3.67]
[1729179267817,3.2078,2615.5,2615.1,3.67]
[1729179268018,3.2078,2615.5,2615.4,0.38244]
[1729179268212,3.2078,2615.5,2615.1,3.67]
[1729179268213,3.2078,2615.5,2615.1,4.7147]
[1729179268415,0.38244,2615.4,2615.3,0.38245]
[1729179269110,0.38245,2615.4,2615.3,0.38245]
[1729179269314,3.2078,2615.5,2615.4,0.38244]
[1729179269715,3.59023,2615.5,2615.4,0.38244]
[1729179269915,40.8,2615.7,2615.0,3.2078]
[1729179270114,40.8,2615.7,2615.6,0.38241]
[1729179270310,4.347,2615.8,2615.7,0.3824]
[1729179270710,1.1392,2615.8,2615.7,0.3824]
[1729179271023,0.00994544,2616.0,2615.9,0.38237]
[1729179274217,0.00994544,2616.0,2615.8,0.38238]
[1729179274407,0.00994544,2616.0,2615.7,0.38239]
[1729179274608,0.38238,2615.8,2615.5,5.307]
[1729179274810,0.00994544,2616.0,2615.5,5.307]
[1729179275208,0.38238,2615.9,2615.5,5.307]
[1729179275422,0.38238,2615.9,2615.6,0.38241]
[1729179275423,3.2078,2615.9,2615.6,0.38241]
[1729179275613,3.2078,2615.9,2615.3,3.2078]
[1729179275812,0.38242,2615.6,2615.4,0.38244]
[1729179276113,2.1872,2615.8,2615.1,8.47771]
[1729179276114,0.3824,2615.7,2615.5,0.38242]
[1729179276309,0.3824,2615.7,2615.3,3.2078]
[1729179276310,0.38242,2615.6,2615.3,3.2078]
[1729179276713,1.0474,2615.7,2615.5,0.38242]
[1729179276918,1.0474,2615.7,2615.6,0.38241]
[1729179277311,0.38243,2615.5,2615.4,0.38244]
[1729179277917,1.0474,2615.7,2615.5,0.38243]
[1729179277918,0.38242,2615.6,2615.5,0.38243]
[1729179278305,1.0474,2615.7,2615.3,0.38244]
[1729179278511,0.38244,2615.4,2615.1,3.67]
[1729179278710,0.38245,2615.4,2615.3,0.38245]
[1729179278918,0.38245,2615.4,2615.0,3.2078]
[1729179278919,3.2078,2615.6,2615.0,3.2078]
[1729179279120,0.38245,2615.4,2615.0,3.2078]
[1729179279413,0.38245,2615.4,2615.3,0.38246]
[1729179279615,0.38244,2615.5,2615.1,0.38249]
[1729179279822,0.38244,2615.5,2615.4,0.38244]
[1729179280016,3.59022,2615.6,2615.5,0.38243]
[1729179280209,3.59022,2615.6,2615.2,0.38247]
[1729179280210,0.38244,2615.5,2615.2,0.38247]
[1729179280416,0.38244,2615.5,2615.1,5.844]
[1729179280417,0.38244,2615.5,2615.4,0.38244]
[1729179280614,3.2078,2615.6,2615.1,5.844]
[1729179280811,0.38245,2615.4,2615.3,0.38245]
[1729179281014,3.2078,2615.6,2615.1,0.38248]
[1729179281223,0.38245,2615.4,2615.1,0.38249]
[1729179281414,3.2078,2615.6,2615.2,0.38246]
[1729179281621,0.38246,2615.3,2615.2,0.38246]
[1729179281817,0.38245,2615.4,2615.1,0.38249]
[1729179282017,0.38246,2615.3,2615.2,0.38247]
[1729179282219,3.2078,2615.6,2615.0,3.2078]
[1729179282417,0.38253,2614.8,2614.7,1.0793]
[1729179282721,0.38253,2614.8,2614.3,0.3826]
[1729179282722,0.38259,2614.4,2614.3,0.3826]
[1729179282951,0.38259,2614.4,2614.2,3.2078]
[1729179282952,0.38258,2614.5,2614.4,0.38258]
[1729179283222,2.53675,2614.7,2614.6,0.38256]
[1729179283418,0.38256,2614.6,2614.5,0.38256]
[1729179283623,0.38257,2614.5,2614.4,0.38258]
[1729179283818,2.1542,2614.7,2614.6,0.38256]
[1729179284029,40.8,2615.0,2614.8,0.38253]
[1729179284215,0.38251,2614.9,2614.7,0.38253]
[1729179284414,0.38251,2614.9,2614.8,0.38253]
[1729179284615,40.8,2615.0,2614.5,1.0564]
[1729179284926,1.1229,2615.1,2614.5,1.0564]
[1729179285113,3.2078,2615.2,2615.0,0.3825]
[1729179285320,3.2078,2615.2,2614.6,2.1597]
[1729179285515,40.8,2615.1,2614.6,2.1597]
[1729179285731,40.8,2615.1,2614.9,0.38251]
[1729179285732,0.38249,2615.1,2614.9,0.38251]
[1729179286226,3.2078,2615.2,2615.0,0.38249]
[1729179286227,3.59028,2615.2,2615.0,0.38249]
[1729179286522,3.59028,2615.2,2614.6,2.1597]
[1729179286523,3.2078,2615.2,2614.6,2.1597]
[1729179286727,3.59028,2615.2,2615.0,0.38249]
[1729179286920,3.2078,2615.2,2615.1,0.38249]
[1729179288538,4.62667,2615.2,2615.1,0.38249]
[1729179289218,4.62667,2615.2,2615.0,0.38249]
[1729179289219,0.38249,2615.1,2615.0,0.38249]
[1729179289418,4.62667,2615.2,2615.1,0.38249]
[1729179289627,1.0364,2615.2,2615.1,0.38249]
[1729179289826,1.41887,2615.2,2615.1,0.38249]
[1729179290025,0.38249,2615.1,2615.0,0.38249]
[1729179290620,1.0364,2615.2,2615.1,0.38249]
[1729179291833,1.41887,2615.2,2615.1,0.38249]
[1729179292328,4.62667,2615.2,2615.1,0.38249]
[1729179292626,4.2442,2615.2,2614.7,3.94635]
[1729179292822,4.62668,2615.2,2615.1,0.38249]
[1729179293618,4.62668,2615.2,2615.0,0.38249]
[1729179293619,0.38249,2615.1,2615.0,0.38249]
[1729179293821,4.62668,2615.2,2615.1,0.38249]
[1729179294317,0.38249,2615.1,2615.0,0.38249]
[1729179294726,5.2402487,2615.2,2614.7,2.99]
[1729179295035,0.38249,2615.1,2615.0,0.38249]
[1729179295224,5.2402487,2615.2,2614.7,3.94635]
[1729179295730,0.38249,2615.1,2614.8,0.38253]
[1729179295925,0.38249,2615.1,2615.0,0.3825]
[1729179296432,5.2402487,2615.2,2614.7,2.99]
[1729179296734,5.6227287,2615.2,2615.1,0.38249]
[1729179296923,4.2442,2615.2,2614.7,2.99]
[1729179297126,4.2442,2615.2,2615.0,0.38249]
[1729179297127,0.38249,2615.1,2615.0,0.38249]
[1729179297524,1.38273039,2615.1,2615.0,0.38249]
[1729179298032,1.00024039,2615.1,2615.0,0.38249]
[1729179298231,5.62691039,2615.2,2615.1,0.38249]
[1729179298735,0.38249,2615.1,2615.0,0.38249]
[1729179298926,0.38253,2614.9,2614.8,0.38252]
[1729179299830,0.38253,2614.9,2614.6,2.1597]
[1729179299831,0.38251,2615.0,2614.9,0.38251]
[1729179300027,1.38273039,2615.1,2615.0,0.3825]
[1729179300227,1.00024039,2615.1,2615.0,0.3825]
[1729179300433,2.41912039,2615.2,2615.1,0.38249]
[1729179300635,0.3825,2615.1,2615.0,0.38249]
[1729179300832,0.38252,2614.9,2614.8,0.38251]
[1729179301032,1.1219,2615.0,2614.9,0.38251]
[1729179301230,1.00024039,2615.1,2614.8,2.99]
[1729179301434,2.61487306,2615.3,2615.2,0.38247]
[1729179301435,1.1208,2615.3,2615.2,0.38247]
[1729179301832,1.00024039,2615.4,2615.3,0.38246]
[1729179302339,5.30344039,2615.5,2615.4,0.38244]
[1729179302523,5.30344039,2615.5,2615.1,4.2467]
[1729179302729,0.38246,2615.3,2615.2,0.38246]
[1729179303343,0.38247,2615.2,2615.1,3.59028]
[1729179303525,1.45937,2615.2,2615.1,3.59028]
[1729179303726,1.0769,2615.2,2615.1,3.59028]
[1729179304032,0.38245,2615.4,2615.3,0.38246]
[1729179304529,10.20565,2615.4,2615.3,0.38246]
[1729179306135,2.1723,2615.5,2615.1,3.2078]
[1729179306339,1.47783,2615.5,2615.4,0.38244]
[1729179306541,1.0954,2615.5,2615.2,2.1763]
[1729179306739,0.38245,2615.4,2615.3,0.38245]
[1729179306939,1.0954,2615.5,2615.2,2.1763]
[1729179307145,0.38247,2615.2,2615.1,3.2078]
[1729179307437,15.24950514,2615.5,2614.9,0.3825]
[1729179307438,0.38251,2615.0,2614.9,0.3825]
[1729179307641,0.38251,2614.9,2614.8,1.42141]
[1729179308145,3.2078,2615.2,2614.8,1.0389]
[1729179308334,1.0695,2615.1,2614.8,1.0389]
[1729179308528,1.0695,2615.1,2615.0,0.3825]
[1729179308728,3.2078,2615.2,2615.1,0.38249]
[1729179309934,2.50095476,2615.3,2615.2,0.38247]
[1729179310435,2.88341476,2615.3,2615.2,0.38247]
[1729179310633,3.88377363,2615.3,2615.2,0.38247]
[1729179310845,2.50095476,2615.3,2615.2,0.38247]